Workbook

Sheet Sheet2 (hidden)
A2: 시도별 | B2: 급경사지 현황 | D2: 2017.12기준 | E2: 계 | F2: 신규 | G2: 시특법시설물 지정 | H2: 규모미달 | I2: 정비해소 | J2: 개발공사로 인한 해소 | K2: 중복대상지 정정
A3: 계 | B3: =SUM(B4:B20) ->  | D3: =SUM(D4:D20) -> 14,325 | E3: =F3-G3-H3-I3-J3-K3 ->  | F3: =SUM(F4:F20) ->  | G3: =SUM(G4:G20) -> 30 | H3: 6 | I3: 4 | J3: 5 | K3: 3 | N3: =B4-D4 -> 23
A4: 서울 | B4: =관리기관별!B5 -> 844 | D4: 821 | E4: =F4-G4-H4-I4-J4-K4 -> 0 | N4: =B5-D5 -> 
A5: 부산 | B5: =관리기관별!B6 ->  | C5: 완료 | D5: 701 | E5: -2 | F5: 22 | G5: 11 | H5: 5 | J5: 5 | K5: 3
A6: 대구 | B6: =관리기관별!B7 ->  | D6: 196 | E6: -15 | F6: 4 | G6: 19
A7: 인천 | B7: =관리기관별!B8 ->  | C7: 완료 | D7: 248 | E7: -3 | F7: 2 | H7: 1 | I7: 4
A8: 광주 | B8: =관리기관별!B9 ->  | D8: 143 | E8: 0
A9: 대전 | B9: =관리기관별!B10 ->  | D9: 211 | E9: 0
A10: 울산 | B10: =관리기관별!B11 ->  | C10: 완료 | D10: 389 | E10: 67 | F10: =456-389 -> 67
A11: 세종 | B11: =관리기관별!B12 ->  | D11: 66 | E11: 1 | F11: 1 | L11: 시스템 확인사항
A12: 경기 | B12: =관리기관별!B13 ->  | C12: 완료 | D12: 887 | F12: =B12-D12 -> 
A13: 강원 | B13: =관리기관별!B14 ->  | D13: 2,327 | E13: 0
A14: 충북 | B14: =관리기관별!B15 ->  | D14: 1,283 | E14: 0
A15: 충남 | B15: =관리기관별!B16 ->  | C15: 완료 | D15: 314 | F15: =B15-D15 -> 
A16: 전북 | B16: =관리기관별!B17 ->  | D16: 1,155 | E16: 0
A17: 전남 | B17: =관리기관별!B18 ->  | D17: 1,296 | E17: 0
A18: 경북 | B18: =관리기관별!B19 ->  | D18: 1,179 | E18: 0 | L18: =D18-B18 -> 
A19: 경남 | B19: =관리기관별!B20 ->  | D19: 3,068 | E19: 0 | N19: -4
A20: 제주 | B20: =관리기관별!B21 -> 37 | D20: 41 | E20: 0 | N20: 0
D24: =1149-1155 -> -6

Sheet 관리기관별 (hidden)
A1: 급경사지 관리기관별 현황('18. 12월말 기준)
A3: 시도 | B3: 계 | C3: 지자체 | D3: 지방산림청 | E3: 한국 농어촌공사 | F3: 한국토지 주택공사 | G3: 한국철도 시설공단 | H3: 도시 철도공사 | I3: 국립공원 관리공단 | J3: 기타 (개인,기업,공공기관)
A4: 총계 | B4: =SUM(B5:B21) ->  | C4: =SUM(C5:C21) -> 10,383 | E4: =SUM(E5:E21) ->  | J4: 1,798
A5: 서울 | B5: =SUM(C5:J5) -> 844 | C5: 809 | D5: =COUNTIF(★전체!$M$7:$M$8,"지방산림청") -> 0 | E5: =COUNTIF(★전체!$M$7:$M$8,"한국농어촌공사") -> 0 | F5: =COUNTIF(★전체!$M$7:$M$8,"한국토지주택공사") -> 0 | G5: =COUNTIF(★전체!$M$7:$M$8,"한국철도시설공단") -> 0 | H5: =COUNTIF(★전체!$M$7:$M$8,"도시철도공사") -> 0 | I5: =COUNTIF(★전체!$M$7:$M$8,"국립공원관리공단") -> 0 | J5: 35 | K5: 완료
A6: 부산 | B6: =SUM(C6:J6) ->  | C6: 342 | D6: =COUNTIF(★전체!#REF!,"지방산림청") ->  | E6: =COUNTIF(★전체!#REF!,"한국농어촌공사") ->  | F6: =COUNTIF(★전체!#REF!,"한국토지주택공사") ->  | G6: =COUNTIF(★전체!#REF!,"한국철도시설공단") ->  | H6: =COUNTIF(★전체!#REF!,"도시철도공사") ->  | I6: =COUNTIF(★전체!#REF!,"국립공원관리공단") ->  | J6: 306 | K6: 최종완료
A7: 대구 | B7: =SUM(C7:J7) ->  | C7: 83 | D7: =COUNTIF(★전체!#REF!,"지방산림청") ->  | E7: =COUNTIF(★전체!#REF!,"한국농어촌공사") ->  | F7: =COUNTIF(★전체!#REF!,"한국토지주택공사") ->  | G7: =COUNTIF(★전체!#REF!,"한국철도시설공단") ->  | H7: =COUNTIF(★전체!#REF!,"도시철도공사") ->  | I7: =COUNTIF(★전체!#REF!,"국립공원관리공단") ->  | J7: 77 | K7: 최종완료
A8: 인천 | B8: =SUM(C8:J8) ->  | C8: 82 | D8: =COUNTIF(★전체!#REF!,"지방산림청") ->  | E8: =COUNTIF(★전체!#REF!,"한국농어촌공사") ->  | F8: =COUNTIF(★전체!#REF!,"한국토지주택공사") ->  | G8: =COUNTIF(★전체!#REF!,"한국철도시설공단") ->  | H8: =COUNTIF(★전체!#REF!,"도시철도공사") ->  | I8: =COUNTIF(★전체!#REF!,"국립공원관리공단") ->  | J8: 159 | K8: 최종완료
A9: 광주 | B9: =SUM(C9:J9) ->  | C9: 67 | D9: =COUNTIF(★전체!#REF!,"지방산림청") ->  | E9: =COUNTIF(★전체!#REF!,"한국농어촌공사") ->  | F9: =COUNTIF(★전체!#REF!,"한국토지주택공사") ->  | G9: =COUNTIF(★전체!#REF!,"한국철도시설공단") ->  | H9: =COUNTIF(★전체!#REF!,"도시철도공사") ->  | I9: =COUNTIF(★전체!#REF!,"국립공원관리공단") ->  | J9: 55 | K9: 최종완료
A10: 대전 | B10: =SUM(C10:J10) ->  | C10: 123 | D10: =COUNTIF(★전체!#REF!,"지방산림청") ->  | E10: =COUNTIF(★전체!#REF!,"한국농어촌공사") ->  | F10: =COUNTIF(★전체!#REF!,"한국토지주택공사") ->  | G10: =COUNTIF(★전체!#REF!,"한국철도시설공단") ->  | H10: =COUNTIF(★전체!#REF!,"도시철도공사") ->  | I10: =COUNTIF(★전체!#REF!,"국립공원관리공단") ->  | J10: 26 | K10: 최종완료
A11: 울산 | B11: =SUM(C11:J11) ->  | C11: 281 | D11: =COUNTIF(★전체!#REF!,"지방산림청") ->  | E11: =COUNTIF(★전체!#REF!,"한국농어촌공사") ->  | F11: =COUNTIF(★전체!#REF!,"한국토지주택공사") ->  | G11: =COUNTIF(★전체!#REF!,"한국철도시설공단") ->  | H11: =COUNTIF(★전체!#REF!,"도시철도공사") ->  | I11: =COUNTIF(★전체!#REF!,"국립공원관리공단") ->  | J11: 27 | K11: 완료
A12: 세종 | C12: 52 | D12: =COUNTIF(★전체!#REF!,"지방산림청") ->  | E12: =COUNTIF(★전체!#REF!,"한국농어촌공사") ->  | F12: =COUNTIF(★전체!#REF!,"한국토지주택공사") ->  | G12: =COUNTIF(★전체!#REF!,"한국철도시설공단") ->  | H12: =COUNTIF(★전체!#REF!,"도시철도공사") ->  | I12: =COUNTIF(★전체!#REF!,"국립공원관리공단") ->  | J12: 7 | K12: 완료
A13: 경기 | C13: 502 | D13: =COUNTIF(★전체!#REF!,"지방산림청") ->  | E13: =COUNTIF(★전체!#REF!,"한국농어촌공사") ->  | F13: =COUNTIF(★전체!#REF!,"한국토지주택공사") ->  | G13: =COUNTIF(★전체!#REF!,"한국철도시설공단") ->  | H13: =COUNTIF(★전체!#REF!,"도시철도공사") ->  | I13: =COUNTIF(★전체!#REF!,"국립공원관리공단") ->  | J13: 373 | K13: 최종완료
A14: 강원 | C14: 1,880 | D14: =COUNTIF(★전체!#REF!,"지방산림청") ->  | E14: =COUNTIF(★전체!#REF!,"한국농어촌공사") ->  | F14: =COUNTIF(★전체!#REF!,"한국토지주택공사") ->  | G14: =COUNTIF(★전체!#REF!,"한국철도시설공단") ->  | H14: =COUNTIF(★전체!#REF!,"도시철도공사") ->  | I14: =COUNTIF(★전체!#REF!,"국립공원관리공단") ->  | J14: 115
A15: 충북 | C15: 953 | D15: =COUNTIF(★전체!#REF!,"지방산림청") ->  | E15: =COUNTIF(★전체!#REF!,"한국농어촌공사") ->  | F15: =COUNTIF(★전체!#REF!,"한국토지주택공사") ->  | G15: =COUNTIF(★전체!#REF!,"한국철도시설공단") ->  | H15: =COUNTIF(★전체!#REF!,"도시철도공사") ->  | I15: =COUNTIF(★전체!#REF!,"국립공원관리공단") ->  | J15: 249 | K15: 최종완료
A16: 충남 | C16: 199 | D16: =COUNTIF(★전체!#REF!,"지방산림청") ->  | E16: =COUNTIF(★전체!#REF!,"한국농어촌공사") ->  | F16: =COUNTIF(★전체!#REF!,"한국토지주택공사") ->  | G16: =COUNTIF(★전체!#REF!,"한국철도시설공단") ->  | H16: =COUNTIF(★전체!#REF!,"도시철도공사") ->  | I16: =COUNTIF(★전체!#REF!,"국립공원관리공단") ->  | J16: 39
A17: 전북 | C17: 972 | D17: =COUNTIF(★전체!#REF!,"지방산림청") ->  | E17: =COUNTIF(★전체!#REF!,"한국농어촌공사") ->  | F17: =COUNTIF(★전체!#REF!,"한국토지주택공사") ->  | G17: =COUNTIF(★전체!#REF!,"한국철도시설공단") ->  | H17: =COUNTIF(★전체!#REF!,"도시철도공사") ->  | I17: =COUNTIF(★전체!#REF!,"국립공원관리공단") ->  | J17: 95 | XFC17: =COUNTIF(★전체!#REF!,"지방산림청") -> 
A18: 전남 | C18: 832 | D18: =COUNTIF(★전체!#REF!,"지방산림청") ->  | E18: =COUNTIF(★전체!#REF!,"한국농어촌공사") ->  | F18: =COUNTIF(★전체!#REF!,"한국토지주택공사") ->  | G18: =COUNTIF(★전체!#REF!,"한국철도시설공단") ->  | H18: =COUNTIF(★전체!#REF!,"도시철도공사") ->  | I18: =COUNTIF(★전체!#REF!,"국립공원관리공단") ->  | J18: 62
A19: 경북 | C19: 995 | D19: =COUNTIF(★전체!#REF!,"지방산림청") ->  | E19: =COUNTIF(★전체!#REF!,"한국농어촌공사") ->  | F19: =COUNTIF(★전체!#REF!,"한국토지주택공사") ->  | G19: =COUNTIF(★전체!#REF!,"한국철도시설공단") ->  | H19: =COUNTIF(★전체!#REF!,"도시철도공사") ->  | I19: =COUNTIF(★전체!#REF!,"국립공원관리공단") ->  | J19: 21 | K19: 최종완료
A20: 경남 | C20: 2,174 | D20: =COUNTIF(★전체!#REF!,"지방산림청") ->  | E20: =COUNTIF(★전체!#REF!,"한국농어촌공사") ->  | F20: =COUNTIF(★전체!#REF!,"한국토지주택공사") ->  | G20: =COUNTIF(★전체!#REF!,"한국철도시설공단") ->  | H20: =COUNTIF(★전체!#REF!,"도시철도공사") ->  | I20: =COUNTIF(★전체!#REF!,"국립공원관리공단") ->  | J20: 152 | K20: 최종완료
A21: 제주 | B21: 37 | C21: 37 | D21: 0 | E21: 0 | F21: 0 | G21: 0 | H21: 0 | I21: 0 | J21: 0 | K21: 최종완료

Sheet 급경사지 등급별 (hidden)
A1: 급경사지 등급별 현황('18. 12월말 기준)
H3: (단위 : 개소)
A4: 시도 | B4: 계 | C4: A | D4: B | E4: C | F4: D | G4: E | H4: 비고
A5: 총계 | B5: =SUM(B6:B22) ->  | C5: =SUM(C6:C22) ->  | H5: 0
A6: 서울 | B6: =SUM(C6:H6) ->  | C6: =COUNTIF(★전체!#REF!,"A") ->  | D6: =COUNTIF(★전체!#REF!,"B") ->  | E6: =COUNTIF(★전체!#REF!,"C") ->  | F6: =COUNTIF(★전체!#REF!,"D") ->  | G6: =COUNTIF(★전체!#REF!,"E") -> 
A7: 부산 | C7: =COUNTIF(★전체!#REF!,"A") ->  | D7: =COUNTIF(★전체!#REF!,"B") ->  | E7: =COUNTIF(★전체!#REF!,"C") ->  | F7: =COUNTIF(★전체!#REF!,"D") ->  | G7: =COUNTIF(★전체!#REF!,"E") -> 
A8: 대구 | C8: =COUNTIF(★전체!#REF!,"A") ->  | D8: =COUNTIF(★전체!#REF!,"B") ->  | E8: =COUNTIF(★전체!#REF!,"C") ->  | F8: =COUNTIF(★전체!#REF!,"D") ->  | G8: =COUNTIF(★전체!#REF!,"E") -> 
A9: 인천 | C9: =COUNTIF(★전체!#REF!,"A") ->  | D9: =COUNTIF(★전체!#REF!,"B") ->  | E9: =COUNTIF(★전체!#REF!,"C") ->  | F9: =COUNTIF(★전체!#REF!,"D") ->  | G9: =COUNTIF(★전체!#REF!,"E") -> 
A10: 광주 | C10: =COUNTIF(★전체!#REF!,"A") ->  | D10: =COUNTIF(★전체!#REF!,"B") ->  | E10: =COUNTIF(★전체!#REF!,"C") ->  | F10: =COUNTIF(★전체!#REF!,"D") ->  | G10: =COUNTIF(★전체!#REF!,"E") -> 
A11: 대전 | C11: =COUNTIF(★전체!#REF!,"A") ->  | D11: =COUNTIF(★전체!#REF!,"B") ->  | E11: =COUNTIF(★전체!#REF!,"C") ->  | F11: =COUNTIF(★전체!#REF!,"D") ->  | G11: =COUNTIF(★전체!#REF!,"E") -> 
A12: 울산 | C12: =COUNTIF(★전체!#REF!,"A") ->  | D12: =COUNTIF(★전체!#REF!,"B") ->  | E12: =COUNTIF(★전체!#REF!,"C") ->  | F12: =COUNTIF(★전체!#REF!,"D") ->  | G12: =COUNTIF(★전체!#REF!,"E") -> 
A13: 세종 | C13: =COUNTIF(★전체!#REF!,"A") ->  | D13: =COUNTIF(★전체!#REF!,"B") ->  | E13: =COUNTIF(★전체!#REF!,"C") ->  | F13: =COUNTIF(★전체!#REF!,"D") ->  | G13: =COUNTIF(★전체!#REF!,"E") -> 
A14: 경기 | C14: =COUNTIF(★전체!#REF!,"A") ->  | D14: =COUNTIF(★전체!#REF!,"B") ->  | E14: =COUNTIF(★전체!#REF!,"C") ->  | F14: =COUNTIF(★전체!#REF!,"D") ->  | G14: =COUNTIF(★전체!#REF!,"E") -> 
A15: 강원 | C15: =COUNTIF(★전체!#REF!,"A") ->  | D15: =COUNTIF(★전체!#REF!,"B") ->  | E15: =COUNTIF(★전체!#REF!,"C") ->  | F15: =COUNTIF(★전체!#REF!,"D") ->  | G15: =COUNTIF(★전체!#REF!,"E") -> 
A16: 충북 | C16: =COUNTIF(★전체!#REF!,"A") ->  | D16: =COUNTIF(★전체!#REF!,"B") ->  | E16: =COUNTIF(★전체!#REF!,"C") ->  | F16: =COUNTIF(★전체!#REF!,"D") ->  | G16: =COUNTIF(★전체!#REF!,"E") -> 
A17: 충남 | C17: =COUNTIF(★전체!#REF!,"A") ->  | D17: =COUNTIF(★전체!#REF!,"B") ->  | E17: =COUNTIF(★전체!#REF!,"C") ->  | F17: =COUNTIF(★전체!#REF!,"D") ->  | G17: =COUNTIF(★전체!#REF!,"E") -> 
A18: 전북 | C18: =COUNTIF(★전체!#REF!,"A") ->  | D18: =COUNTIF(★전체!#REF!,"B") ->  | E18: =COUNTIF(★전체!#REF!,"C") ->  | F18: =COUNTIF(★전체!#REF!,"D") ->  | G18: =COUNTIF(★전체!#REF!,"E") ->  | XFA18: =COUNTIF(★전체!#REF!,"지방산림청") -> 
A19: 전남 | C19: =COUNTIF(★전체!#REF!,"A") ->  | D19: =COUNTIF(★전체!#REF!,"B") ->  | E19: =COUNTIF(★전체!#REF!,"C") ->  | F19: =COUNTIF(★전체!#REF!,"D") ->  | G19: =COUNTIF(★전체!#REF!,"E") -> 
A20: 경북 | C20: =COUNTIF(★전체!#REF!,"A") ->  | D20: 767 | E20: =COUNTIF(★전체!#REF!,"C") ->  | F20: =COUNTIF(★전체!#REF!,"D") ->  | G20: =COUNTIF(★전체!#REF!,"E") -> 
A21: 경남 | C21: =COUNTIF(★전체!#REF!,"A") ->  | D21: =COUNTIF(★전체!#REF!,"B") ->  | E21: =COUNTIF(★전체!#REF!,"C") ->  | F21: =COUNTIF(★전체!#REF!,"D") ->  | G21: =COUNTIF(★전체!#REF!,"E") -> 
A22: 제주 | C22: =COUNTIF(★전체!#REF!,"A") ->  | D22: =COUNTIF(★전체!#REF!,"b") ->  | E22: =COUNTIF(★전체!#REF!,"C") ->  | F22: =COUNTIF(★전체!#REF!,"D") ->  | G22: =COUNTIF(★전체!#REF!,"E") -> 

Sheet 급경사지 용도별 (hidden)
A1: 급경사지 관리기관별 현황('18. 12월말 기준)
A3: 시도 | B3: 계 | C3: 도로 | D3: 아파트 | E3: 주택 | F3: 공단 | G3: 공원 | H3: 철도 | I3: 기타 | J3: 비고
A4: 총계 | B4: =SUM(B5:B21) ->  | C4: =SUM(C5:C21) ->  | I4: =SUM(I5:I21) -> 
A5: 서울 | B5: =SUM(C5:J5) -> 2 | C5: =COUNTIF(★전체!$G$7:$G$8,"도로(지,군,비)") -> 0 | D5: =COUNTIF(★전체!$G$7:$G$8,"아파트") -> 0 | E5: =COUNTIF(★전체!$G$7:$G$8,"주택") -> 0 | F5: =COUNTIF(★전체!$G$7:$G$8,"공단") -> 0 | G5: =COUNTIF(★전체!$G$7:$G$8,"공원") -> 2 | H5: =COUNTIF(★전체!$G$7:$G$8,"철도") -> 0 | I5: =COUNTIF(★전체!$G$7:$G$8,"기타") -> 0
A6: 부산 | C6: =COUNTIF(★전체!#REF!,"도로") ->  | D6: =COUNTIF(★전체!#REF!,"아파트") ->  | E6: =COUNTIF(★전체!#REF!,"주택") ->  | F6: =COUNTIF(★전체!#REF!,"공단") ->  | G6: =COUNTIF(★전체!#REF!,"공원") ->  | H6: =COUNTIF(★전체!#REF!,"철도") ->  | I6: =COUNTIF(★전체!#REF!,"기타") -> 
A7: 대구 | C7: =COUNTIF(★전체!#REF!,"도로") ->  | D7: =COUNTIF(★전체!#REF!,"아파트") ->  | E7: =COUNTIF(★전체!#REF!,"주택") ->  | F7: =COUNTIF(★전체!#REF!,"공단") ->  | G7: =COUNTIF(★전체!#REF!,"공원") ->  | H7: =COUNTIF(★전체!#REF!,"철도") ->  | I7: =COUNTIF(★전체!#REF!,"기타") -> 
A8: 인천 | C8: =COUNTIF(★전체!#REF!,"도로") ->  | D8: =COUNTIF(★전체!#REF!,"아파트") ->  | E8: =COUNTIF(★전체!#REF!,"주택") ->  | F8: =COUNTIF(★전체!#REF!,"공단") ->  | G8: =COUNTIF(★전체!#REF!,"공원") ->  | H8: =COUNTIF(★전체!#REF!,"철도") ->  | I8: =COUNTIF(★전체!#REF!,"기타") -> 
A9: 광주 | C9: =COUNTIF(★전체!#REF!,"도로") ->  | D9: =COUNTIF(★전체!#REF!,"아파트") ->  | E9: =COUNTIF(★전체!#REF!,"주택") ->  | F9: =COUNTIF(★전체!#REF!,"공단") ->  | G9: =COUNTIF(★전체!#REF!,"공원") ->  | H9: =COUNTIF(★전체!#REF!,"철도") ->  | I9: =COUNTIF(★전체!#REF!,"기타") -> 
A10: 대전 | C10: =COUNTIF(★전체!#REF!,"도로") ->  | D10: =COUNTIF(★전체!#REF!,"아파트") ->  | E10: =COUNTIF(★전체!#REF!,"주택") ->  | F10: =COUNTIF(★전체!#REF!,"공단") ->  | G10: =COUNTIF(★전체!#REF!,"공원") ->  | H10: =COUNTIF(★전체!#REF!,"철도") ->  | I10: =COUNTIF(★전체!#REF!,"기타") -> 
A11: 울산 | C11: =COUNTIF(★전체!#REF!,"도로") ->  | D11: =COUNTIF(★전체!#REF!,"아파트") ->  | E11: =COUNTIF(★전체!#REF!,"주택") ->  | F11: =COUNTIF(★전체!#REF!,"공단") ->  | G11: =COUNTIF(★전체!#REF!,"공원") ->  | H11: =COUNTIF(★전체!#REF!,"철도") ->  | I11: =COUNTIF(★전체!#REF!,"기타") -> 
A12: 세종 | C12: =COUNTIF(★전체!#REF!,"도로") ->  | D12: =COUNTIF(★전체!#REF!,"아파트") ->  | E12: =COUNTIF(★전체!#REF!,"주택") ->  | F12: =COUNTIF(★전체!#REF!,"공단") ->  | G12: =COUNTIF(★전체!#REF!,"공원") ->  | H12: =COUNTIF(★전체!#REF!,"철도") ->  | I12: =COUNTIF(★전체!#REF!,"기타") -> 
A13: 경기 | C13: =COUNTIF(★전체!#REF!,"도로") ->  | D13: =COUNTIF(★전체!#REF!,"아파트") ->  | E13: =COUNTIF(★전체!#REF!,"주택") ->  | F13: =COUNTIF(★전체!#REF!,"공단") ->  | G13: =COUNTIF(★전체!#REF!,"공원") ->  | H13: =COUNTIF(★전체!#REF!,"철도") ->  | I13: =COUNTIF(★전체!#REF!,"기타") -> 
A14: 강원 | C14: =COUNTIF(★전체!#REF!,"도로") ->  | D14: =COUNTIF(★전체!#REF!,"아파트") ->  | E14: =COUNTIF(★전체!#REF!,"주택") ->  | F14: =COUNTIF(★전체!#REF!,"공단") ->  | G14: =COUNTIF(★전체!#REF!,"공원") ->  | H14: =COUNTIF(★전체!#REF!,"철도") ->  | I14: =COUNTIF(★전체!#REF!,"기타") -> 
A15: 충북 | C15: =COUNTIF(★전체!#REF!,"도로") ->  | D15: =COUNTIF(★전체!#REF!,"아파트") ->  | E15: =COUNTIF(★전체!#REF!,"주택") ->  | F15: =COUNTIF(★전체!#REF!,"공단") ->  | G15: =COUNTIF(★전체!#REF!,"공원") ->  | H15: =COUNTIF(★전체!#REF!,"철도") ->  | I15: =COUNTIF(★전체!#REF!,"기타") -> 
A16: 충남 | C16: =COUNTIF(★전체!#REF!,"도로") ->  | D16: =COUNTIF(★전체!#REF!,"아파트") ->  | E16: =COUNTIF(★전체!#REF!,"주택") ->  | F16: =COUNTIF(★전체!#REF!,"공단") ->  | G16: =COUNTIF(★전체!#REF!,"공원") ->  | H16: =COUNTIF(★전체!#REF!,"철도") ->  | I16: =COUNTIF(★전체!#REF!,"기타") -> 
A17: 전북 | C17: =COUNTIF(★전체!#REF!,"도로") ->  | D17: =COUNTIF(★전체!#REF!,"아파트") ->  | E17: =COUNTIF(★전체!#REF!,"주택") ->  | F17: =COUNTIF(★전체!#REF!,"공단") ->  | G17: =COUNTIF(★전체!#REF!,"공원") ->  | H17: =COUNTIF(★전체!#REF!,"철도") ->  | I17: =COUNTIF(★전체!#REF!,"기타") ->  | XFC17: =COUNTIF(★전체!#REF!,"지방산림청") -> 
A18: 전남 | C18: =COUNTIF(★전체!#REF!,"도로") ->  | D18: =COUNTIF(★전체!#REF!,"아파트") ->  | E18: =COUNTIF(★전체!#REF!,"주택") ->  | F18: =COUNTIF(★전체!#REF!,"공단") ->  | G18: =COUNTIF(★전체!#REF!,"공원") ->  | H18: =COUNTIF(★전체!#REF!,"철도") ->  | I18: =COUNTIF(★전체!#REF!,"기타") -> 
A19: 경북 | C19: =COUNTIF(★전체!#REF!,"도로") ->  | D19: =COUNTIF(★전체!#REF!,"아파트") ->  | E19: =COUNTIF(★전체!#REF!,"주택") ->  | F19: =COUNTIF(★전체!#REF!,"공단") ->  | G19: =COUNTIF(★전체!#REF!,"공원") ->  | H19: =COUNTIF(★전체!#REF!,"철도") ->  | I19: =COUNTIF(★전체!#REF!,"기타") -> 
A20: 경남 | C20: =COUNTIF(★전체!#REF!,"도로") ->  | D20: =COUNTIF(★전체!#REF!,"아파트") ->  | E20: =COUNTIF(★전체!#REF!,"주택") ->  | F20: =COUNTIF(★전체!#REF!,"공단") ->  | G20: =COUNTIF(★전체!#REF!,"공원") ->  | H20: =COUNTIF(★전체!#REF!,"철도") ->  | I20: =COUNTIF(★전체!#REF!,"기타") -> 
A21: 제주 | C21: =COUNTIF(★전체!#REF!,"도로") ->  | D21: =COUNTIF(★전체!#REF!,"아파트") ->  | E21: =COUNTIF(★전체!#REF!,"주택") ->  | F21: =COUNTIF(★전체!#REF!,"공단") ->  | G21: =COUNTIF(★전체!#REF!,"공원") ->  | H21: =COUNTIF(★전체!#REF!,"철도") ->  | I21: =COUNTIF(★전체!#REF!,"기타") -> 

Sheet 급경사지 구조별 현황 (hidden)
A1: 급경사지 관리기관별 현황('18. 12월말 기준)
A3: 시도 | B3: 계 | C3: 토사 | D3: 옹벽 | E3: 석축 | F3: 암반 | G3: 복합
A4: 총계 | B4: =SUM(B5:B21) ->  | C4: =SUM(C5:C21) -> 
A5: 서울 | B5: =SUM(C5:G5) -> 0 | C5: =COUNTIF(★전체!$I$7:$I$8,"토사") -> 0 | D5: =COUNTIF(★전체!$I$7:$I$8,"옹벽") -> 0 | E5: =COUNTIF(★전체!$I$7:$I$8,"석축") -> 0 | F5: =COUNTIF(★전체!$I$7:$I$8,"암반") -> 0 | G5: =COUNTIF(★전체!$I$7:$I$8,"복합") -> 0
A6: 부산 | C6: =COUNTIF(★전체!#REF!,"토사") ->  | D6: =COUNTIF(★전체!#REF!,"옹벽") ->  | E6: =COUNTIF(★전체!#REF!,"석축") ->  | F6: =COUNTIF(★전체!#REF!,"암반") ->  | G6: =COUNTIF(★전체!#REF!,"복합") -> 
A7: 대구 | C7: =COUNTIF(★전체!#REF!,"토사") ->  | D7: =COUNTIF(★전체!#REF!,"옹벽") ->  | E7: =COUNTIF(★전체!#REF!,"석축") ->  | F7: =COUNTIF(★전체!#REF!,"암반") ->  | G7: =COUNTIF(★전체!#REF!,"복합") -> 
A8: 인천 | C8: =COUNTIF(★전체!#REF!,"토사") ->  | D8: =COUNTIF(★전체!#REF!,"옹벽") ->  | E8: =COUNTIF(★전체!#REF!,"석축") ->  | F8: =COUNTIF(★전체!#REF!,"암반") ->  | G8: =COUNTIF(★전체!#REF!,"복합") -> 
A9: 광주 | C9: =COUNTIF(★전체!#REF!,"토사") ->  | D9: =COUNTIF(★전체!#REF!,"옹벽") ->  | E9: =COUNTIF(★전체!#REF!,"석축") ->  | F9: =COUNTIF(★전체!#REF!,"암반") ->  | G9: =COUNTIF(★전체!#REF!,"복합") -> 
A10: 대전 | C10: =COUNTIF(★전체!#REF!,"토사") ->  | D10: =COUNTIF(★전체!#REF!,"옹벽") ->  | E10: =COUNTIF(★전체!#REF!,"석축") ->  | F10: =COUNTIF(★전체!#REF!,"암반") ->  | G10: =COUNTIF(★전체!#REF!,"복합") -> 
A11: 울산 | C11: =COUNTIF(★전체!#REF!,"토사") ->  | D11: =COUNTIF(★전체!#REF!,"옹벽") ->  | E11: =COUNTIF(★전체!#REF!,"석축") ->  | F11: =COUNTIF(★전체!#REF!,"암반") ->  | G11: =COUNTIF(★전체!#REF!,"복합") -> 
A12: 세종 | C12: =COUNTIF(★전체!#REF!,"토사") ->  | D12: =COUNTIF(★전체!#REF!,"옹벽") ->  | E12: =COUNTIF(★전체!#REF!,"석축") ->  | F12: =COUNTIF(★전체!#REF!,"암반") ->  | G12: =COUNTIF(★전체!#REF!,"복합") -> 
A13: 경기 | C13: =COUNTIF(★전체!#REF!,"토사") ->  | D13: =COUNTIF(★전체!#REF!,"옹벽") ->  | E13: =COUNTIF(★전체!#REF!,"석축") ->  | F13: =COUNTIF(★전체!#REF!,"암반") ->  | G13: =COUNTIF(★전체!#REF!,"복합") -> 
A14: 강원 | C14: =COUNTIF(★전체!#REF!,"토사") ->  | D14: =COUNTIF(★전체!#REF!,"옹벽") ->  | E14: =COUNTIF(★전체!#REF!,"석축") ->  | F14: =COUNTIF(★전체!#REF!,"암반") ->  | G14: =COUNTIF(★전체!#REF!,"복합") -> 
A15: 충북 | C15: =COUNTIF(★전체!#REF!,"토사") ->  | D15: =COUNTIF(★전체!#REF!,"옹벽") ->  | E15: =COUNTIF(★전체!#REF!,"석축") ->  | F15: =COUNTIF(★전체!#REF!,"암반") ->  | G15: =COUNTIF(★전체!#REF!,"복합") -> 
A16: 충남 | C16: =COUNTIF(★전체!#REF!,"토사") ->  | D16: =COUNTIF(★전체!#REF!,"옹벽") ->  | E16: =COUNTIF(★전체!#REF!,"석축") ->  | F16: =COUNTIF(★전체!#REF!,"암반") ->  | G16: =COUNTIF(★전체!#REF!,"복합") -> 
A17: 전북 | C17: =COUNTIF(★전체!#REF!,"토사") ->  | D17: =COUNTIF(★전체!#REF!,"옹벽") ->  | E17: =COUNTIF(★전체!#REF!,"석축") ->  | F17: =COUNTIF(★전체!#REF!,"암반") ->  | G17: =COUNTIF(★전체!#REF!,"복합") ->  | XEZ17: =COUNTIF(★전체!#REF!,"지방산림청") -> 
A18: 전남 | C18: =COUNTIF(★전체!#REF!,"토사") ->  | D18: =COUNTIF(★전체!#REF!,"옹벽") ->  | E18: =COUNTIF(★전체!#REF!,"석축") ->  | F18: =COUNTIF(★전체!#REF!,"암반") ->  | G18: =COUNTIF(★전체!#REF!,"복합") -> 
A19: 경북 | C19: =COUNTIF(★전체!#REF!,"토사") ->  | D19: =COUNTIF(★전체!#REF!,"옹벽") ->  | E19: =COUNTIF(★전체!#REF!,"석축") ->  | F19: =COUNTIF(★전체!#REF!,"암반") ->  | G19: =COUNTIF(★전체!#REF!,"복합") -> 
A20: 경남 | C20: =COUNTIF(★전체!#REF!,"토사") ->  | D20: =COUNTIF(★전체!#REF!,"옹벽") ->  | E20: =COUNTIF(★전체!#REF!,"석축") ->  | F20: =COUNTIF(★전체!#REF!,"암반") ->  | G20: =COUNTIF(★전체!#REF!,"복합") -> 
A21: 제주 | C21: =COUNTIF(★전체!#REF!,"토사") ->  | D21: =COUNTIF(★전체!#REF!,"옹벽") ->  | E21: =COUNTIF(★전체!#REF!,"석축") ->  | F21: =COUNTIF(★전체!#REF!,"암반") ->  | G21: =COUNTIF(★전체!#REF!,"복합") -> 

Sheet 급경사지 유형별 현황 (hidden)
A1: 급경사지 관리기관별 현황('18. 12월말 기준)
A3: 시도 | B3: 합계 | E3: 자연비탈면 | H3: 인공비탈면 | K3: 비고
B4: 소계 | C4: 공공 | D4: 민간 | E4: 소계 | F4: 공공 | G4: 민간 | H4: 소계 | I4: 공공 | J4: 민간
A5: 계 | B5: =SUM(B6:B22) -> 15,075 | C5: =SUM(C6:C22) -> 12,693 | D5: 2,382 | E5: 2,660 | F5: 2,299 | G5: 361 | H5: =SUM(H6:H22) -> 12,415 | I5: =SUM(I6:I22) -> 10,394 | J5: =SUM(J6:J22) -> 2,021
A6: 서울 | B6: =C6+D6 -> 889 | C6: =F6+I6 -> 489 | D6: =G6+J6 -> 400 | E6: =F6+G6 -> 57 | F6: 33 | G6: 24 | H6: =I6+J6 -> 832 | I6: 456 | J6: 376
A7: 부산 | B7: =C7+D7 -> 704 | C7: =F7+I7 -> 385 | D7: =G7+J7 -> 319 | E7: =F7+G7 -> 119 | F7: 61 | G7: 58 | H7: =I7+J7 -> 585 | I7: 324 | J7: 261
A8: 대구 | B8: 186 | C8: 131 | D8: 55 | E8: 21 | F8: 19 | G8: 2 | H8: 165 | I8: 112 | J8: 53
A9: 인천 | B9: 247 | C9: 114 | D9: 133 | E9: 34 | F9: 18 | G9: 16 | H9: 213 | I9: 96 | J9: 117
A10: 광주 | B10: 157 | C10: 93 | D10: 64 | E10: 2 | F10: 2 | H10: 155 | I10: 91 | J10: 64
A11: 대전 | B11: 198 | C11: 165 | D11: 33 | E11: =F11+G11 -> 4 | G11: 4 | H11: 194 | I11: 165 | J11: 29
A12: 울산 | B12: 466 | C12: 420 | D12: 46 | E12: 21 | F12: 19 | G12: 2 | H12: 445 | I12: 401 | J12: 44
A13: 세종 | B13: 83 | C13: 75 | D13: 8 | E13: 5 | F13: 3 | G13: 2 | H13: 78 | I13: 72 | J13: 6
A14: 경기 | B14: 1,097 | C14: 758 | D14: 339 | E14: 80 | F14: 54 | G14: 26 | H14: 1,017 | I14: 704 | J14: 313
A15: 강원 | B15: 2,342 | C15: 2,238 | D15: 104 | E15: 523 | F15: 479 | G15: 44 | H15: 1,819 | I15: 1,759 | J15: 60
A16: 충북 | B16: 1,410 | C16: 1,145 | D16: 265 | E16: 185 | F16: 130 | G16: 55 | H16: 1,225 | I16: 1,015 | J16: 210
A17: 충남 | B17: 333 | C17: 262 | D17: 71 | E17: 76 | F17: 50 | G17: 26 | H17: 257 | I17: 212 | J17: 45
A18: 전북 | B18: 1,149 | C18: 1,044 | D18: 105 | E18: 174 | F18: 162 | G18: 12 | H18: 975 | I18: 882 | J18: 93 | XFC18: =COUNTIF(★전체!#REF!,"지방산림청") -> 
A19: 전남 | B19: 1,296 | C19: 1,129 | D19: 167 | E19: 339 | F19: 271 | G19: 68 | H19: 957 | I19: 858 | J19: 99
A20: 경북 | B20: 1,542 | C20: 1,507 | D20: 35 | E20: 443 | F20: 439 | G20: 4 | H20: 1,099 | I20: 1,068 | J20: 31
A21: 경남 | B21: 2,939 | C21: 2,703 | D21: 236 | E21: 562 | F21: 544 | G21: 18 | H21: 2,377 | I21: 2,159 | J21: 218
A22: 제주 | B22: 37 | C22: 35 | D22: 2 | E22: 15 | F22: 15 | H22: 22 | I22: 20 | J22: 2

Sheet 붕괴위험지역 정비사업 현황 (hidden)
A1: 급경사지 관리기관별 현황('18. 12월말 기준)
A3: 시도 | B3: 급경사지 현황 | C3: 급경사지 붕괴위험지역 지정(고시) 현황
C4: 계 (1+2) | D4: 공공시설 | H4: 민간시설
D5: 소계 | E5: 정비완료 | F5: 정비중 | G5: 정비예정 | H5: 소계 | I5: 정비완료 | J5: 정비중 | K5: 정비예정
A6: 계 | B6: 15,075 | C6: =SUM(C7:C23) -> 0 | D6: =SUM(D7:D23) -> 0 | E6: =SUM(E7:E23) -> 0 | F6: 0 | G6: 0 | H6: =SUM(H7:H23) -> 0 | I6: =SUM(I7:I23) -> 0 | J6: 0 | K6: 0
A7: 서울 | B7: 889 | C7: =D7+H7 -> 0 | D7: =E7+F7+G7 -> 0 | H7: =I7+J7+K7 -> 0
A8: 부산 | B8: 704 | C8: =D8+H8 -> 0 | D8: =E8+F8+G8 -> 0 | H8: =I8+J8+K8 -> 0
A9: 대구 | B9: 186 | C9: 0 | D9: 0 | H9: 0
A10: 인천 | B10: 247 | C10: 0 | D10: 0 | H10: 0
A11: 광주 | B11: 157 | C11: 0 | D11: 0 | H11: 0
A12: 대전 | B12: 198 | C12: 0 | D12: 0 | H12: 0
A13: 울산 | B13: 466 | C13: 0 | D13: 0 | H13: 0
A14: 세종 | B14: 83 | C14: 0 | D14: 0 | H14: 0
A15: 경기 | B15: 1,097 | C15: 0 | D15: 0 | H15: 0
A16: 강원 | B16: 2,342 | C16: 0 | D16: 0 | H16: 0
A17: 충북 | B17: 1,410 | C17: 0 | D17: 0 | H17: 0
A18: 충남 | B18: 333 | C18: 0 | D18: 0 | H18: 0
A19: 전북 | B19: 1,149 | C19: 0 | D19: 0 | H19: 0 | XFC19: =COUNTIF(★전체!#REF!,"지방산림청") -> 
A20: 전남 | B20: 1,296 | C20: 0 | D20: 0 | H20: 0
A21: 경북 | B21: 1,542 | C21: 0 | D21: 0 | H21: 0
A22: 경남 | B22: 2,939 | C22: 0 | D22: 0 | H22: 0
A23: 제주 | B23: 37 | C23: 0 | D23: 0 | H23: 0
C36: 185 | I36: 93 | J36: 166206 | P36: 79
J37: 83103

Sheet 붕괴위험지역 정비사업 대상 (hidden)
G1: =G7+G9+G11+G12+G14+G16+G18+G20+G22+G24+G26+G28+G30+G32+G34+G36+G38 -> 141
A2: 시도별 | B2: 급경사지 현황 | C2: 정비대상 | E2: 2018년까지 | G2: 2019년 추진 | I2: 2020년 이후
C3: 완료 | D3: 627개소 | E3: 완료 | F3: =E5 -> 627개소 | G3: 완료예정 | H3: =G6 -> 43개소 | I3: 잔량 | J3: =I5 -> 868개소
C4: 사업량 (완료) | D4: 사업비 (국비) | E4: 사업량 | F4: 사업비 (국비) | G4: 사업량 (완료예정) | H4: 사업비 (국비) | I4: 사업량 * 계속사업포함 | J4: 사업비 (국비) | K4: =M4+O4 -> 0
A5: 계 | B5: 15,075 | C5: =C7+C9+C12+C14+C16+C18+C20+C22+C24+C26+C28+C30+C32+C34+C36+C38 -> 1,565 | D5: =D7+D9+D11+D12+D14+D16+D18+D20+D22+D24+D26+D28+D30+D32+D34+D36+D38 -> 2,240,781 | E5: =E7+E9+E12+E14+E16+E18+E20+E22+E24+E26+E28+E30+E32+E34+E36+E38 -> 627 | F5: =F7+F9+F11+F12+F14+F16+F18+F20+F22+F24+F28+F30+F32+F34+F36+F38+F26 -> 875,561 | G5: =G7+G9+G11+G12+G14+G16+G18+G20+G22+G24+G28+G30+G32+G34+G36+G38+G26 -> 141 | H5: =H7+H9+H11+H12+H14+H16+H18+H20+H22+H24+H28+H30+H32+H34+H36+H38+H26 -> 169,332 | I5: =I7+I9+I11+I12+I14+I16+I18+I20+I22+I24+I28+I30+I32+I34+I36+I38+I26 -> 868 | J5: =J7+J9+J11+J12+J14+J16+J18+J20+J22+J24+J28+J30+J32+J34+J36+J38+J26 -> 1,195,888
C6: =C8+C10+C13+C15+C17+C19+C21+C23+C25+C27+C29+C31+C33+C35+C37+C39 -> 627 | D6: =ROUNDUP(D8+D10+D13+D15+D17+D19+D21+D23+D25+D27+D29+D31+D33+D35+D37+D39,0) -> 1,073,538 | F6: =F8+F10+F13+F15+F17+F19+F21+F23+F25+F27+F29+F31+F33+F35+F37+F39 -> 394,284 | G6: 43 | H6: =H8+H10+H13+H15+H17+H19+H21+H23+H25+H27+H29+H31+H33+H35+H37+H39 -> 84,666 | J6: =J8+J10+J13+J15+J17+J19+J21+J23+J25+J27+J29+J31+J33+J35+J37+J39 -> 594,588
A7: 서울 | B7: 889 | C7: 7 | D7: =F7+H7+J7 -> 6,907 | E7: 6 | F7: 6,907 | G7: 0 | H7: 0 | I7: 1 | J7: 0
C8: 6 | D8: 870 | F8: 870
A9: 부산 | B9: 704 | C9: 10 | D9: 25,429 | E9: 10 | F9: 25,429 | G9: 0 | H9: 0 | J9: 0
C10: 10 | D10: 12,698 | F10: 12,698 | G10: 0 | H10: 0 | J10: 0
A11: 대구 | B11: 186 | C11: 없음 | D11: 0 | E11: 없음
A12: 인천 | B12: 247 | C12: 3 | D12: 1,414 | E12: 3 | F12: 1,414 | G12: 0 | H12: 0 | J12: 0
C13: 3 | D13: 0
A14: 광주 | B14: 157 | C14: 11 | D14: 6,610 | E14: 8 | F14: 5,550 | I14: 3 | J14: 1,060
C15: 8 | D15: 3,105 | F15: 2,775 | J15: 330
A16: 대전 | B16: 198 | C16: 1 | D16: 300 | E16: 1 | F16: 300
C17: 1 | D17: 0
A18: 울산 | B18: 466 | C18: 2 | D18: 4,000 | E18: 2 | F18: 4,000
C19: 2 | D19: 2,000 | F19: 2,000
A20: 세종 | B20: 83 | C20: 1 | D20: 4,000 | F20: 0 | G20: 1 | H20: 1,000 | I20: 1 | J20: 3,000
D21: 2,000 | H21: 500 | J21: 1,500
A22: 경기 | B22: 1,097 | C22: 89 | D22: 43,474 | E22: 70 | F22: 29,373 | G22: 2 | H22: 2,518 | I22: 18 | J22: 11,583
C23: 70 | D23: 19,340 | F23: 13,169 | G23: 1 | H23: 1,259 | J23: 4,912
A24: 강원 | B24: 2,342 | C24: 363 | D24: 623,923 | E24: 133 | F24: 246,722 | G24: 33 | H24: 39,822 | I24: 211 | J24: 337,379
C25: 133 | D25: 309,247 | F25: 120,671 | G25: 19 | H25: 19,911 | J25: 168,665
A26: 충북 | B26: 1,410 | C26: 188 | D26: =F26+H26+J26 -> 184,016 | E26: 74 | F26: 63,756 | G26: 12 | H26: 10,680 | I26: 109 | J26: 109,580
C27: 74 | D27: 86,347 | F27: 26,517 | G27: 5 | H27: 5,340 | J27: 54,490
A28: 충남 | B28: 333 | C28: 87 | D28: 78,167 | E28: 32 | F28: 32,369 | G28: 13 | H28: 9,628 | I28: 48 | J28: 36,170
C29: 32 | D29: 37,573 | F29: 14,949 | G29: 7 | H29: 4,814 | J29: 17,810
A30: 전북 | B30: 1,149 | C30: 107 | D30: 192,512 | E30: 47 | F30: 76,254 | G30: 17 | H30: 18,960 | I30: 55 | J30: 97,298
C31: 47 | D31: 90,901 | F31: 33,692 | G31: 5 | H31: 9,480 | J31: 47,729
A32: 전남 | B32: 1,296 | C32: 337 | D32: 456,081 | E32: 90 | F32: 125,055 | G32: 27 | H32: 32,316 | I32: 230 | J32: 298,710
C33: 90 | D33: 219,814 | F33: 54,507 | G33: 17 | H33: 16,158 | J33: 149,149
A34: 경북 | B34: 1,542 | C34: 160 | D34: 239,773 | E34: 56 | F34: 85,241 | G34: 13 | H34: 22,530 | I34: 96 | J34: 132,002 | XER34: =COUNTIF(★전체!#REF!,"지방산림청") -> 
C35: 56 | D35: 108,522 | F35: 31,556 | G35: 8 | H35: 11,265 | J35: 65,701
A36: 경남 | B36: 2,939 | C36: 185 | D36: 331,825 | E36: 85 | F36: 139,017 | G36: 20 | H36: 26,102 | I36: 94 | J36: 166,706 | P36: 79
C37: 85 | D37: 162,447 | F37: 66,293 | G37: 6 | H37: 13,051 | J37: 83,103
A38: 제주 | B38: 37 | C38: 14 | D38: 42,350 | E38: 10 | F38: 34,174 | G38: 3 | H38: 5,776 | I38: 2 | J38: 2,400
C39: 10 | D39: 18,675 | F39: 14,587 | G39: 2 | H39: 2,888 | J39: 1,200

Sheet ★전체
A1: 붙임4 | B1: 2022년도 급경사지 안전관리 대책 추진 대상 급경사지
A4: ① 우기대비 급경사지 안전관리대책 추진대상 | Q4: ② 합동점검 | U4: ③ DB 현행화 | W4: ④ 결과 공개 | Z4: ⑤ 점검 결과 | AC4: ⑥ 후속 조치 | AH4: ⑦ 담당현황 | AK4: 비고
A5: 지구명 | B5: 위 치 | G5: 용 도 | I5: 분 류 | K5: 제 원 | N5: 관리기관
B6: 시·도 | C6: 시.군.구 | D6: 읍·면·동 | E6: 리·동 | F6: 지번 | G6: 용도 | H6: 기타상세 | I6: 유형 | J6: 구조 | K6: 길이 | L6: 높이 | M6: 평균경사 | N6: 관리기관 | O6: 소유자·점유자, 관계인 | P6: 공공/민간 | Q6: 점검자 (공무원,공사·공단) | R6: 전문가 (민간전문가 등) | S6: 점검 시작일 (YYYY-MM-DD) | T6: 점검 종료일 (YYYY-MM-DD) | U6: NDMS 관리번호 (급경사지 정보시스템) | V6: 급경사지 정보시스템 점검결과 입력일 (YYYY-MM-DD) | W6: 공개여부 | X6: 유형 | Y6: 공개일 | Z6: 조치 유형(대책) | AA6: 조치 유형(소요기간) | AB6: 주요 지적사항(내용) | AC6: 진행상황 | AD6: 소요예산 (백만원) | AE6: 재원 유형 | AF6: 확보시기 | AG6: 완료시기 | AH6: 부서명 | AI6: 담당자 | AJ6: 전화번호
A7: 산정4지구 | B7: 전남도 | C7: 목포시 | E7: 산정동 | F7: 994 | G7: 공원 | I7: 인공 | J7: 암반 | K7: 200 | L7: 55 | M7: 75 | N7: 지자체 | O7: 목포시 공원녹지과 | P7: 공공 | Q7: 방재팀장 외 1명 | R7: 민간저문가 2인 | S7: 2022-05-17 | T7: 2022-06-24 | U7: 4611000015 | V7: 2022-04-25 | W7: 공개 | X7: 홈페이지 | Y7: 2022-07-17 | Z7: 보수·보강 | AA7: 중·장기조치 | AH7: 공원녹지과 | AI7: 주선우 | AJ7: 061-270-3423
A8: 목원3지구 | B8: 전남도 | C8: 목포시 | E8: 무안동 | F8: 10-35 | G8: 공원 | I8: 인공 | J8: 암반 | K8: 190 | L8: 25 | M8: 70 | N8: 지자체 | O8: 목포시 공원녹지과 | P8: 공공 | Q8: 방재팀장 외 4명 | R8: 민간저문가 2인 | S8: 2022-05-17 | T8: 2022-06-24 | U8: 4611000073 | V8: 2022-04-25 | W8: 공개 | X8: 홈페이지 | Y8: 2022-07-17 | Z8: 보수·보강 | AA8: 중·장기조치 | AH8: 공원녹지과 | AI8: 주선우 | AJ8: 061-270-3423

Sheet Sheet1
